bitfinex-derivatives/quotes_BTCF0:USTF0_20241210
["timestamp","ask_amount","ask_price","bid_price","bid_amount"]
[1733873874802,0.0315,96958.0,96954.0,0.051537]
[1733873876105,0.0315,96958.0,96956.0,0.051535]
[1733873876314,0.0315,96958.0,96947.0,0.3608]
[1733873876606,0.051537,96955.0,96954.0,0.002]
[1733873877000,0.051537,96955.0,96947.0,0.3608]
[1733873877001,0.051537,96955.0,96952.0,0.051538]
[1733873877204,0.051537,96955.0,96954.0,0.053537]
[1733873877611,0.051537,96955.0,96954.0,0.051537]
[1733873877812,0.051537,96955.0,96954.0,0.053537]
[1733873883113,0.051533,96961.0,96959.0,0.051534]
[1733873883313,0.09219172,96964.0,96954.0,0.002]
[1733873883506,0.051535,96958.0,96954.0,0.002]
[1733873884015,0.051535,96958.0,96956.0,0.051536]
[1733873885418,0.09211844,96962.0,96956.0,0.001]
[1733873885603,7.328e-05,96964.0,96957.0,0.0622]
[1733873885604,0.09219172,96964.0,96957.0,0.0622]
[1733873885803,0.09219172,96964.0,96962.0,0.051533]
[1733873886019,7.328e-05,96964.0,96962.0,0.051533]
[1733873886322,7.328e-05,96964.0,96962.0,0.412333]
[1733873887317,7.328e-05,96964.0,96962.0,0.051533]
[1733873887513,0.00307328,96964.0,96962.0,0.051533]
[1733873888313,0.00207328,96964.0,96962.0,0.051533]
[1733873889605,0.00107328,96964.0,96962.0,0.051533]
[1733873889908,7.328e-05,96964.0,96962.0,0.052533]
[1733873890813,7.328e-05,96964.0,96962.0,0.053533]
[1733873891017,7.328e-05,96964.0,96962.0,0.052533]
[1733873891216,7.328e-05,96964.0,96962.0,0.06559197]
[1733873891614,7.328e-05,96964.0,96962.0,0.06359197]
[1733873891917,7.328e-05,96964.0,96962.0,0.06459197]
[1733873893004,7.328e-05,96964.0,96962.0,0.06359197]
[1733873893207,7.328e-05,96964.0,96962.0,0.06459197]
[1733873893812,7.328e-05,96964.0,96962.0,0.06359197]
[1733873894215,7.328e-05,96964.0,96962.0,0.06459197]
[1733873894410,0.051532,96963.0,96962.0,0.01405897]
[1733873894816,0.084032,96963.0,96962.0,0.01405897]
[1733873895122,0.084032,96963.0,96962.0,0.01305897]
[1733873896520,0.001,96963.0,96962.0,0.01305897]
[1733873896917,7.328e-05,96964.0,96962.0,0.01305897]
[1733873896918,7.328e-05,96964.0,96963.0,0.051532]
[1733873897613,0.09211844,96978.0,96962.0,0.43625897]
[1733873897809,0.09211844,96980.0,96979.0,0.051524]
[1733873898116,0.12282459,96982.0,96980.0,0.051523]
[1733873898511,0.09249154,96982.0,96980.0,0.051523]
[1733873898716,7.831e-05,96981.0,96980.0,0.051523]
[1733873900418,0.00107831,96981.0,96980.0,0.051523]
[1733873900716,0.00207831,96981.0,96980.0,0.051523]
[1733873902019,0.00207831,96981.0,96980.0,0.23597377]
[1733873902214,0.00207831,96981.0,96980.0,0.051523]
[1733873902413,0.00207831,96981.0,96980.0,0.23594507]
[1733873902613,0.00207831,96981.0,96980.0,0.051523]
[1733873903026,0.00207831,96981.0,96980.0,0.0621642]
[1733873903920,0.00207831,96981.0,96980.0,0.24658627]
[1733873904415,0.00207831,96981.0,96980.0,0.0621642]
[1733873905320,0.05360031,96981.0,96980.0,0.0106412]
[1733873905619,0.05360031,96981.0,96971.0,0.0319]
[1733873905620,0.00207831,96981.0,96969.0,0.051528]
[1733873905814,0.3608,96972.0,96969.0,0.051528]
[1733873906014,0.083328,96971.0,96969.0,0.051528]
[1733873906722,0.0318,96971.0,96969.0,0.06211149]
[1733873906913,0.0318,96971.0,96970.0,0.3608]
[1733873907314,0.0318,96971.0,96969.0,0.06711149]
[1733873907527,0.0318,96971.0,96969.0,0.001]
[1733873907528,0.12430423,96971.0,96969.0,0.001]
[1733873907829,0.051528,96970.0,96969.0,0.005]
[1733873909220,0.051528,96970.0,96969.0,0.004]
[1733873909431,0.17579348,96971.0,96970.0,0.001]
[1733873909816,0.444128,96971.0,96955.0,0.18459749]
[1733873910119,0.051537,96955.0,96951.0,0.01062215]
[1733873910323,0.051537,96955.0,96949.0,0.412339]
[1733873910516,0.051537,96955.0,96949.0,0.3608]
[1733873911022,0.051537,96955.0,96951.0,0.051538]
[1733873911214,0.09247226,96957.0,96951.0,0.003]
[1733873911412,0.051537,96953.0,96951.0,0.003]
[1733873911922,0.45327226,96952.0,96951.0,0.003]
[1733873912225,0.45327226,96952.0,96938.0,0.18459749]
[1733873912226,0.00012643,96951.0,96938.0,0.18459749]
[1733873912423,0.051546,96937.0,96936.0,0.0001242]
[1733873912623,0.06087718,96937.0,96936.0,0.0001242]
[1733873913121,0.051546,96937.0,96936.0,0.0001242]
[1733873914115,0.051546,96937.0,96936.0,0.0021242]
[1733873914316,0.052546,96937.0,96936.0,0.0101242]
[1733873915318,0.084746,96937.0,96936.0,0.0101242]
[1733873915718,0.084746,96937.0,96936.0,0.0021242]
[1733873915918,0.084746,96937.0,96936.0,0.0041242]
[1733873924540,0.001,96937.0,96936.0,0.4164702]
[1733873925844,0.001,96937.0,96936.0,0.42711927]
[1733873937450,0.052546,96937.0,96936.0,0.55985147]
[1733873937739,0.052546,96937.0,96936.0,0.01477327]
[1733873938142,0.14471178,96937.0,96936.0,0.01477327]
[1733873938347,0.001,96937.0,96936.0,0.01477327]
[1733873939947,0.001,96937.0,96936.0,0.37557327]
[1733873940246,0.001,96937.0,96936.0,0.56062109]
[1733873940444,0.09316578,96937.0,96936.0,0.37557327]
[1733873940643,0.001,96937.0,96936.0,0.37557327]
[1733873941351,0.001,96937.0,96936.0,0.01477327]
[1733873941745,0.12388771,96937.0,96936.0,0.01477327]
[1733873942350,0.12388771,96937.0,96936.0,0.0041242]
[1733873942646,0.001,96937.0,96936.0,0.0041242]
[1733873943046,0.12454932,96937.0,96936.0,0.0041242]
[1733873943343,0.001,96937.0,96936.0,0.0041242]
[1733873944345,0.0317,96937.0,96936.0,0.0041242]
[1733873945841,0.001,96937.0,96936.0,0.0041242]
[1733873946251,0.001,96937.0,96936.0,0.18921351]
[1733873946442,0.001,96937.0,96936.0,0.0041242]
[1733873947046,0.12460343,96937.0,96936.0,0.0041242]
[1733873947246,0.001,96937.0,96936.0,0.24982846]
[1733873947449,0.001,96937.0,96936.0,0.0041242]
[1733873947843,0.001,96937.0,96936.0,0.2511067]
[1733873948055,0.001,96937.0,96936.0,0.0041242]
[1733873948454,0.12460591,96937.0,96936.0,0.0041242]
[1733873948663,0.001,96937.0,96936.0,0.0041242]
[1733873949048,0.001,96937.0,96936.0,0.27455266]
[1733873949248,0.20514664,96954.0,96936.0,0.27455266]
[1733873949249,0.09270143,96945.0,96937.0,0.051546]
[1733873949552,0.54513157,96961.0,96946.0,0.051541]
[1733873949553,0.09270143,96948.0,96946.0,0.051541]
[1733873949748,0.09270143,96949.0,96948.0,0.05154]
[1733873950456,0.09270143,96950.0,96948.0,0.05154]
[1733873950847,0.12360591,96953.0,96948.0,0.24685029]
[1733873951047,0.12360591,96953.0,96950.0,0.051539]
[1733873951949,0.12360591,96954.0,96950.0,0.051539]
[1733873952150,0.12360591,96953.0,96950.0,0.051539]
[1733873952655,0.00112643,96951.0,96950.0,0.051539]
[1733873953350,0.00112643,96951.0,96950.0,0.054539]
[1733873953551,0.09375663,96951.0,96950.0,0.23958074]
[1733873953758,0.00112643,96951.0,96950.0,0.054539]
[1733873953959,0.00112643,96951.0,96950.0,0.003]
[1733873954251,0.12473234,96951.0,96950.0,0.003]
[1733873954457,0.12373234,96951.0,96950.0,0.004]
[1733873954857,0.12373234,96951.0,96950.0,0.01390231]
[1733873955463,0.12373234,96951.0,96950.0,0.01290231]
[1733873955956,0.12373234,96951.0,96950.0,0.01190231]
[1733873956168,0.00012643,96951.0,96950.0,0.01190231]
[1733873956655,0.17516501,96951.0,96950.0,0.01090231]
[1733873956852,0.00012643,96951.0,96946.0,0.051541]
[1733873957054,0.051541,96947.0,96946.0,0.051541]
[1733873957759,0.051542,96945.0,96944.0,0.18504174]
[1733873958058,0.051542,96945.0,96937.0,0.18504174]
[1733873958059,0.051545,96938.0,96937.0,0.18504174]
[1733873958359,0.051542,96945.0,96936.0,0.01094707]
[1733873958360,0.051546,96937.0,96936.0,0.01094707]
[1733873958859,0.53585636,96937.0,96936.0,0.01094707]
[1733873959058,0.051546,96937.0,96936.0,0.01094707]
[1733873959265,0.412346,96937.0,96936.0,0.01094707]
[1733873960056,0.412346,96937.0,96936.0,0.01294707]
[1733873961165,0.413346,96937.0,96936.0,0.01794707]
[1733873963354,0.413346,96937.0,96936.0,0.0071242]
[1733873963555,0.415346,96937.0,96936.0,0.0051242]
[1733873964654,0.6638,96937.0,96923.0,0.18504174]
[1733873964866,0.051555,96919.0,96912.0,0.18504174]
[1733873965073,0.05156,96910.0,96903.0,0.23660574]
[1733873965366,0.051562,96907.0,96903.0,0.051564]
[1733873965562,0.3608,96910.0,96903.0,0.0107158]
[1733873965764,0.051564,96904.0,96899.0,0.18504174]
[1733873965964,0.051564,96904.0,96898.0,0.443566]
[1733873966166,0.46265759,96913.0,96895.0,0.0646]
[1733873966167,0.412365,96902.0,96895.0,0.18504174]
[1733873966363,0.50497637,96902.0,96895.0,0.18504174]
[1733873966760,0.75341137,96902.0,96881.0,0.0006]
[1733873967065,0.75341137,96902.0,96858.0,0.3685564]
[1733873967066,0.7216,96882.0,96864.0,0.2885537]
[1733873967265,0.7216,96882.0,96851.0,1.12636682]
[1733873967266,0.051583,96867.0,96860.0,0.02081558]
[1733873967457,0.0616,96881.0,96851.0,1.12580682]
[1733873967458,0.09245627,96876.0,96851.0,1.12580682]
[1733873967659,0.09245627,96876.0,96857.0,0.051588]
[1733873967862,0.18474312,96876.0,96861.0,0.3608]
[1733873968458,0.001,96867.0,96861.0,0.3608]
[1733873969071,0.3608,96873.0,96861.0,0.3688]
[1733873969464,0.051584,96865.0,96861.0,0.3688]
[1733873970569,0.002,96867.0,96861.0,0.3688]
[1733873970767,0.3608,96873.0,96865.0,0.051584]
[1733873971466,0.001,96865.0,96861.0,0.3688]
[1733873971670,0.001,96865.0,96864.0,0.051585]
[1733873971971,0.001,96873.0,96864.0,0.051585]
[1733873972162,0.001,96873.0,96861.0,0.3688]
[1733873972365,0.10185759,96871.0,96865.0,0.007]
[1733873973766,0.051583,96867.0,96865.0,0.007]
[1733873974673,0.051583,96867.0,96861.0,0.3608]
[1733873974871,0.36368001,96873.0,96864.0,0.007]
[1733873975170,0.14353972,96891.0,96869.0,0.3608]
[1733873975369,0.14353972,96891.0,96881.0,0.3608]
[1733873975678,0.051571,96891.0,96881.0,0.3608]
[1733873976166,0.10185759,96891.0,96881.0,0.3608]
[1733873976362,0.10185759,96891.0,96870.0,0.0662]
[1733873976363,0.051575,96882.0,96870.0,0.0662]
[1733873976559,0.10185759,96880.0,96869.0,0.006]
[1733873976764,0.0314,96879.0,96869.0,0.006]
[1733873976960,0.051579,96875.0,96869.0,0.006]
[1733873977669,0.0314,96879.0,96869.0,0.006]
[1733873978064,0.3608,96886.0,96879.0,0.051576]
[1733873978464,0.052571,96891.0,96879.0,0.051576]
[1733873979370,0.051574,96885.0,96874.0,0.0304]
[1733873979668,0.051574,96885.0,96879.0,0.002]
[1733873979869,0.001,96880.0,96879.0,0.002]
[1733873981766,0.001,96880.0,96878.0,0.051577]
[1733873982770,0.001,96880.0,96879.0,0.002]
[1733873983365,0.412369,96894.0,96881.0,0.051575]
[1733873983771,0.412369,96894.0,96879.0,0.004]
[1733873984064,0.3608,96894.0,96886.0,0.051573]
[1733873984468,0.051569,96893.0,96886.0,0.051573]
[1733873985777,0.3608,96894.0,96888.0,0.051572]
[1733873986070,0.051565,96902.0,96896.0,0.051567]
[1733873986277,0.051565,96902.0,96885.0,0.3608]
[1733873986476,0.45276872,96907.0,96890.0,0.05157]
[1733873986477,0.09196872,96904.0,96890.0,0.05157]
[1733873986663,0.051568,96895.0,96890.0,0.05157]
[1733873987372,0.09196872,96904.0,96885.0,0.3608]
[1733873987578,0.09196872,96902.0,96892.0,0.05157]
[1733873987771,0.00254927,96899.0,96892.0,0.05157]
[1733873988274,0.00154927,96899.0,96892.0,0.05157]
[1733873988480,0.00154927,96899.0,96890.0,0.002]
[1733873988669,0.051569,96895.0,96890.0,0.002]
[1733873989373,0.3608,96895.0,96892.0,0.001]
[1733873989581,0.051569,96894.0,96892.0,0.001]
[1733873990367,0.051569,96894.0,96892.0,0.003]
[1733873990771,0.051569,96894.0,96892.0,0.001]
[1733873990972,0.053569,96894.0,96892.0,0.001]
[1733873991366,0.053569,96894.0,96890.0,0.053571]
[1733873992077,0.053569,96894.0,96885.0,0.3608]
[1733873992078,0.002,96894.0,96885.0,0.3608]
[1733873992472,0.051572,96889.0,96885.0,0.3608]
[1733873992666,0.051572,96889.0,96885.0,0.412373]
[1733873993176,0.14354072,96889.0,96885.0,0.412373]
[1733873993473,0.09196872,96886.0,96885.0,0.414373]
[1733873994376,0.051573,96887.0,96885.0,0.414373]
[1733873995172,0.051573,96887.0,96885.0,0.002]
[1733873995378,0.051573,96887.0,96885.0,0.004]
[1733873995974,0.051573,96887.0,96885.0,0.002]
[1733873995975,0.12336008,96886.0,96885.0,0.002]
[1733873996183,0.17493308,96887.0,96885.0,0.004]
[1733873996573,0.12336008,96886.0,96885.0,0.004]
[1733873996877,0.12336008,96886.0,96885.0,0.003]
[1733873997681,0.13272408,96886.0,96885.0,0.003]
[1733873998272,0.16371628,96886.0,96885.0,0.002]
[1733873998477,0.12201504,96886.0,96885.0,0.002]
[1733873998675,0.25619557,96886.0,96885.0,0.002]
[1733873998878,0.12201504,96886.0,96857.0,0.412388]
[1733873999178,0.12201504,96886.0,96845.0,0.3608]
[1733873999179,0.051587,96860.0,96850.0,0.051592]
[1733873999379,0.060951,96860.0,96850.0,0.051592]
[1733873999781,0.060951,96860.0,96859.0,1.50154857]
[1733873999973,0.11111743,96860.0,96859.0,1.50354857]
[1733874000180,0.11111743,96860.0,96859.0,1.502]
[1733874000873,0.010364,96860.0,96859.0,1.553587]
[1733874001970,0.061951,96860.0,96859.0,1.502]
[1733874002282,0.1853028,96860.0,96859.0,1.506]
[1733874002484,0.061951,96860.0,96859.0,1.506]
[1733874002778,0.17589164,96860.0,96859.0,1.506]
[1733874003186,0.052587,96860.0,96859.0,1.506]
[1733874006272,0.001,96860.0,96859.0,1.506]
[1733874007681,0.09341153,96860.0,96859.0,1.506]
[1733874007876,0.001,96860.0,96859.0,1.506]
[1733874008979,0.001,96860.0,96859.0,1.8668]
[1733874016884,0.3608,96875.0,96874.0,0.051579]
[1733874017587,0.3608,96875.0,96874.0,1.551579]
[1733874017785,0.412379,96875.0,96874.0,1.5]
[1733874018184,0.50479412,96875.0,96874.0,1.501]
[1733874018381,0.412379,96875.0,96874.0,1.501]
[1733874018581,0.412379,96875.0,96874.0,1.503]
[1733874018782,0.45324483,96875.0,96874.0,1.503]
[1733874018979,0.45324483,96875.0,96874.0,1.554579]
[1733874019781,0.45324483,96875.0,96874.0,1.503]
[1733874019988,0.3608,96875.0,96874.0,1.503]
[1733874020379,0.45326913,96875.0,96874.0,1.503]
[1733874020583,0.3608,96875.0,96874.0,1.503]
[1733874021494,0.0924825,96876.0,96874.0,1.503]
[1733874021682,0.0924825,96876.0,96875.0,0.051579]
[1733874021886,0.0924825,96882.0,96881.0,0.051576]
[1733874022085,0.00012768,96885.0,96884.0,0.051574]
[1733874022888,0.00012768,96885.0,96884.0,1.551574]
[1733874023289,0.00312768,96885.0,96884.0,1.551574]
[1733874024290,0.00412768,96885.0,96884.0,1.551574]
[1733874024888,0.00112768,96885.0,96884.0,1.552574]
[1733874025087,0.00012768,96885.0,96884.0,1.552574]
[1733874028494,0.00154927,96899.0,96884.0,1.552574]
[1733874028694,0.00154927,96899.0,96898.0,0.051567]
[1733874028883,0.00154927,96899.0,96898.0,0.05279085]
[1733874029083,0.00154927,96899.0,96898.0,1.55279085]
[1733874029290,0.0323,96908.0,96907.0,0.051562]
[1733874029490,0.0323,96908.0,96907.0,0.412362]
[1733874029692,0.03238989,96908.0,96907.0,0.412362]
[1733874029885,8.989e-05,96908.0,96907.0,0.41358585]
[1733874030087,8.989e-05,96908.0,96907.0,1.91358585]
[1733874031292,0.00508989,96908.0,96907.0,1.91358585]
[1733874032498,0.01408989,96908.0,96907.0,1.91358585]
[1733874036193,0.01408989,96908.0,96907.0,0.41358585]
[1733874036499,0.01408989,96908.0,96907.0,0.05278585]
[1733874041095,0.01408989,96908.0,96907.0,1.55278585]
[1733874044293,8.989e-05,96908.0,96907.0,1.58458585]
[1733874045410,0.00017795,96908.0,96907.0,1.58458585]
[1733874045701,0.41253895,96908.0,96907.0,1.50122385]
[1733874045905,0.05173895,96908.0,96907.0,1.50122385]
[1733874046294,0.05173895,96908.0,96885.0,0.3913]
[1733874046295,0.051568,96896.0,96885.0,0.3608]
[1733874046493,0.3608,96900.0,96885.0,0.3608]
[1733874046695,0.051572,96888.0,96885.0,0.3608]
[1733874047298,0.051572,96888.0,96887.0,1.50154793]
[1733874048499,0.051572,96888.0,96887.0,1.50354793]
[1733874049502,0.0325,96895.0,96893.0,0.051569]
[1733874049503,0.1765505,96895.0,96893.0,0.051569]
[1733874050000,0.051571,96889.0,96887.0,1.55563993]
[1733874050199,0.051571,96889.0,96887.0,1.55511993]
[1733874050396,0.0325,96895.0,96887.0,1.55511993]
[1733874050397,0.0924177,96891.0,96887.0,1.50354793]
[1733874050700,0.0924177,96891.0,96890.0,0.051571]
[1733874051406,0.0355,96895.0,96890.0,0.051571]
[1733874051606,0.05157,96892.0,96890.0,0.051571]
[1733874052707,0.001,96891.0,96890.0,0.051571]
[1733874053307,0.051572,96889.0,96887.0,1.50214793]
[1733874053501,0.14404896,96889.0,96887.0,1.50154793]
[1733874053716,0.09247696,96888.0,96887.0,1.50154793]
[1733874054510,0.14404896,96889.0,96887.0,1.55311993]
[1733874054899,0.14404896,96889.0,96887.0,1.55411993]
[1733874055207,0.051572,96889.0,96887.0,0.052572]
[1733874056208,0.051572,96889.0,96888.0,1.5]
[1733874061220,0.05158,96877.0,96876.0,0.051578]
[1733874061607,0.05158,96873.0,96871.0,0.051581]
[1733874062208,0.3922,96876.0,96851.0,0.27882445]
[1733874062407,0.051588,96859.0,96858.0,0.051588]
[1733874062609,0.051588,96859.0,96858.0,1.551588]
[1733874063423,0.3608,96864.0,96858.0,1.5]
[1733874063729,0.19427773,96870.0,96863.0,0.051585]
[1733874063730,0.09242014,96865.0,96863.0,0.051585]
[1733874063911,0.1232346,96870.0,96869.0,0.051582]
[1733874064112,0.05258,96873.0,96862.0,0.3608]
[1733874064113,0.001,96873.0,96872.0,0.05158]
[1733874064507,0.00010339,96875.0,96874.0,0.051579]
[1733874064707,0.00010339,96875.0,96874.0,1.551579]
[1733874065818,0.00010339,96875.0,96874.0,1.556579]
[1733874066017,0.00010339,96875.0,96874.0,1.56740693]
[1733874067219,0.00010339,96875.0,96874.0,1.56940693]
[1733874068216,0.00010339,96875.0,96874.0,1.57040693]
[1733874068217,0.00110339,96875.0,96874.0,1.57040693]
[1733874068622,0.00010339,96875.0,96874.0,1.56440693]
[1733874068821,0.00110339,96875.0,96874.0,1.57140693]
[1733874071620,0.14398814,96895.0,96892.0,0.05157]
[1733874071814,0.051568,96895.0,96892.0,0.05157]
[1733874072222,0.051568,96895.0,96893.0,0.051569]
[1733874072420,0.14398814,96895.0,96894.0,1.5]
[1733874072613,0.05166031,96895.0,96894.0,1.5]
[1733874072917,0.05166031,96895.0,96893.0,0.051569]
[1733874072918,0.05266031,96895.0,96893.0,0.051569]
[1733874073125,0.00109231,96895.0,96893.0,0.051569]
[1733874073424,9.231e-05,96895.0,96894.0,1.5]
[1733874073724,0.00109231,96895.0,96894.0,1.5]
[1733874075016,0.051572,96888.0,96886.0,0.051573]
[1733874075321,0.09255595,96887.0,96886.0,0.051573]
[1733874075624,0.051572,96888.0,96886.0,0.051573]
[1733874076715,0.051572,96888.0,96886.0,0.052573]
[1733874077323,0.3608,96887.0,96886.0,0.002]
[1733874077516,0.3938,96887.0,96878.0,1.5]
[1733874077821,0.051584,96865.0,96863.0,0.24662445]
[1733874078024,0.051585,96863.0,96859.0,0.051587]
[1733874078227,0.051585,96863.0,96862.0,1.5]
[1733874079320,0.052585,96863.0,96862.0,1.504]
[1733874080224,0.001,96863.0,96862.0,1.555586]
[1733874080422,0.052585,96863.0,96862.0,1.555586]
[1733874080618,0.052585,96863.0,96862.0,1.504]
[1733874080818,0.052585,96863.0,96862.0,1.512]
[1733874082020,0.14513725,96863.0,96862.0,1.512]
[1733874082522,0.052585,96863.0,96862.0,1.512]
[1733874083021,0.05267084,96863.0,96862.0,0.012]
[1733874083432,0.17602197,96863.0,96862.0,0.012]
[1733874083626,0.17602268,96863.0,96862.0,0.012]
[1733874084132,0.05267084,96863.0,96862.0,0.012]
[1733874084520,0.05267084,96863.0,96862.0,0.01]
[1733874084828,0.05167084,96863.0,96862.0,0.002]
[1733874085023,0.05167084,96863.0,96862.0,0.005]
[1733874085229,0.05167084,96863.0,96862.0,1.505]
[1733874085531,0.14414226,96863.0,96862.0,1.505]
[1733874086328,0.05167084,96863.0,96862.0,1.505]
[1733874089126,0.05167084,96863.0,96862.0,1.503]
[1733874089734,0.05167084,96863.0,96862.0,1.502]
[1733874091424,0.051595,96845.0,96828.0,0.00154908]
[1733874091635,0.4226,96844.0,96828.0,0.00154908]
[1733874091828,0.4535,96844.0,96829.0,1.5]
[1733874092634,0.57667934,96844.0,96829.0,1.5]
[1733874092833,0.051609,96818.0,96816.0,0.3608]
[1733874093135,0.051617,96804.0,96802.0,0.051618]
[1733874093334,0.051617,96804.0,96803.0,1.5]
[1733874093639,0.051614,96810.0,96807.0,0.051615]
[1733874093934,8.368e-05,96809.0,96807.0,0.051615]
[1733874095231,0.00208368,96809.0,96807.0,0.065615]
[1733874099635,0.00208368,96809.0,96808.0,1.5]
[1733874100533,8.368e-05,96809.0,96808.0,1.5]
[1733874100725,0.00108368,96809.0,96808.0,1.5]
[1733874101128,8.368e-05,96809.0,96808.0,1.5]
[1733874101327,0.00108368,96809.0,96808.0,1.508]
[1733874101537,0.00108368,96809.0,96808.0,1.513]
[1733874106542,0.09238111,96835.0,96808.0,1.8738]
[1733874106838,0.051604,96828.0,96826.0,0.051605]
[1733874107237,0.051604,96828.0,96827.0,1.5]
[1733874107545,0.05170826,96828.0,96827.0,1.5]
[1733874108439,0.05270826,96828.0,96827.0,1.5]
[1733874109931,0.05270826,96828.0,96827.0,1.501]
[1733874110935,0.05170826,96828.0,96827.0,1.502]
[1733874116444,0.05170826,96828.0,96827.0,0.002]
[1733874118440,0.05170826,96828.0,96827.0,1.502]
[1733874119550,0.2057591,96828.0,96827.0,1.502]
[1733874120340,0.10189044,96828.0,96827.0,0.002]
[1733874120537,0.27782808,96828.0,96827.0,0.002]
[1733874120746,0.051612,96812.0,96811.0,1.5]
[1733874122146,0.20618562,96812.0,96811.0,1.5]
[1733874122351,0.051612,96812.0,96811.0,1.5]
[1733874122945,0.10180033,96812.0,96811.0,1.5]
[1733874123348,0.051612,96812.0,96811.0,1.5]
[1733874123549,0.10180033,96812.0,96811.0,1.5]
[1733874123850,0.10180033,96812.0,96811.0,1.507]
[1733874123851,0.10280033,96812.0,96811.0,1.507]
[1733874124152,0.10280033,96812.0,96811.0,1.51]
[1733874124739,0.10280033,96812.0,96811.0,1.561613]
[1733874125249,0.052612,96812.0,96811.0,1.561613]
[1733874126750,0.001,96812.0,96811.0,1.561613]
[1733874129552,0.001,96812.0,96811.0,1.80823745]
[1733874129947,0.001,96812.0,96811.0,1.561613]
[1733874130460,0.001,96812.0,96811.0,1.61953226]
[1733874130760,0.001,96812.0,96811.0,0.06791926]
[1733874130954,0.14536011,96812.0,96811.0,0.01]
[1733874131257,0.052612,96812.0,96811.0,1.51]
[1733874131459,0.17627784,96812.0,96811.0,0.01]
[1733874131959,0.052612,96812.0,96811.0,1.51]
[1733874132256,0.10280107,96812.0,96811.0,1.51]
[1733874132457,0.052612,96812.0,96811.0,1.51]
[1733874132757,0.1028024,96812.0,96811.0,0.01]
[1733874133461,0.051616,96806.0,96805.0,1.50052]
[1733874133658,0.4626064,96806.0,96805.0,1.5]
[1733874134156,0.46261249,96806.0,96805.0,1.5]
[1733874134347,0.051618,96801.0,96800.0,0.1]
[1733874135162,0.05170933,96801.0,96800.0,0.1]
[1733874135360,0.10190728,96801.0,96800.0,0.1]
[1733874135956,0.05170933,96801.0,96800.0,0.1]
[1733874136258,0.23686537,96801.0,96800.0,0.1]
[1733874137353,0.23786537,96801.0,96800.0,0.1]
[1733874139157,0.05270933,96801.0,96800.0,0.1]
[1733874140356,0.17604751,96801.0,96800.0,0.1]
[1733874141167,0.00109133,96801.0,96800.0,0.1]
[1733874141468,0.00109133,96801.0,96800.0,0.151619]
[1733874141662,0.00109133,96801.0,96800.0,0.16219679]
[1733874141870,0.09249052,96817.0,96800.0,1.66219679]
[1733874142067,0.09249052,96819.0,96817.0,0.05161]
[1733874142257,0.3608,96820.0,96810.0,0.3608]
[1733874142454,0.10185759,96820.0,96811.0,0.115813]
[1733874142763,0.051612,96814.0,96812.0,0.051612]
[1733874142975,8.976e-05,96813.0,96812.0,0.051612]
[1733874144169,8.976e-05,96813.0,96812.0,0.054612]
[1733874145165,8.976e-05,96813.0,96812.0,0.084712]
[1733874145365,0.00108976,96813.0,96812.0,0.084712]
[1733874146363,0.00108976,96813.0,96812.0,0.081712]
[1733874146566,0.00108976,96813.0,96812.0,0.084712]
[1733874146868,0.00108976,96813.0,96812.0,1.584712]
[1733874151976,0.48413818,96828.0,96824.0,0.051606]
[1733874151977,0.09249052,96828.0,96824.0,0.051606]
[1733874152159,0.09249052,96832.0,96831.0,0.051602]
[1733874152461,0.09249052,96839.0,96838.0,0.051599]
[1733874152667,0.09249052,96843.0,96842.0,0.051596]
[1733874152862,0.10183729,96843.0,96842.0,0.051596]
[1733874153062,0.10192011,96843.0,96842.0,0.051596]
[1733874153261,8.282e-05,96843.0,96842.0,0.051596]
[1733874153870,0.00308282,96843.0,96842.0,0.051596]
[1733874154967,0.01008282,96843.0,96842.0,0.051596]
[1733874155569,0.00108282,96843.0,96842.0,0.051596]
[1733874155771,0.00308282,96843.0,96842.0,0.051596]
[1733874156272,0.00208282,96843.0,96842.0,0.051596]
[1733874156479,0.00308282,96843.0,96842.0,0.051596]
[1733874161267,0.05467882,96843.0,96842.0,0.051596]
[1733874161668,0.00308282,96843.0,96842.0,0.051596]
[1733874162974,0.05467882,96843.0,96842.0,0.051596]
[1733874164670,0.00308282,96843.0,96842.0,0.051596]
[1733874167069,0.00308282,96843.0,96838.0,1.50056]
[1733874167070,0.051598,96839.0,96838.0,0.00056]
[1733874167270,0.3608,96839.0,96818.0,0.3608]
[1733874167477,0.3608,96839.0,96822.0,0.051607]
[1733874167478,0.051607,96823.0,96822.0,0.051607]
[1733874167781,0.051607,96823.0,96822.0,1.551607]
[1733874167975,0.051607,96823.0,96822.0,1.5]
[1733874169075,0.051607,96823.0,96822.0,1.503]
[1733874169680,0.051607,96823.0,96822.0,1.504]
[1733874169877,0.051607,96823.0,96822.0,0.004]
[1733874170073,0.14397161,96823.0,96822.0,0.004]
[1733874170272,0.051607,96823.0,96822.0,0.004]
[1733874170674,0.051607,96823.0,96822.0,0.001]
[1733874171074,0.051607,96823.0,96811.0,1.5]
[1733874173478,0.0327,96822.0,96811.0,1.5]
[1733874175377,0.051612,96812.0,96811.0,1.5]
[1733874177469,0.051612,96812.0,96811.0,1.502]
[1733874177673,0.05269482,96812.0,96811.0,1.503]
[1733874178279,0.17578031,96812.0,96811.0,1.503]
[1733874178480,0.05269482,96812.0,96811.0,0.003]
[1733874178680,0.05169482,96812.0,96811.0,0.002]
[1733874178876,0.05169482,96812.0,96811.0,0.001]
[1733874179677,0.05169482,96812.0,96811.0,0.002]
[1733874180583,0.36088282,96812.0,96800.0,0.1]
[1733874180787,0.36088282,96812.0,96790.0,0.00011911]
[1733874180788,0.051624,96791.0,96790.0,0.00011911]
[1733874180980,0.412424,96791.0,96790.0,0.00011911]
[1733874181480,0.473924,96791.0,96790.0,0.00011911]
[1733874181888,0.474924,96791.0,96790.0,0.00111911]
[1733874182186,0.051635,96770.0,96768.0,0.3608]
[1733874183793,0.10185759,96780.0,96762.0,0.06472]